Cogmind - Beta 11 @@@ ROGUE MODE // 2022.04.13 @ 14:35:25 Player: DaddyWalrus Result: Destroyed by as-71241 with Assembled Focal Cannon Performance ------------- Evolutions (1) 500 Regions Visited (5) 1000 Robots Destroyed (66) 330 Value Destroyed (1588) 1588 Prototype IDs (4) 80 Alien Tech Used (0) 0 Bonus (1229) 1229 TOTAL SCORE: 4727 Bonus ------- High Alert Combat Kills 14 Follower Combat Kills 37 Met Imprinter 300 Destroyed Z-Imprinter 1000 Friendly Fire -122 Cogmind --------- Core Integrity 0/400 Matter 85/300 Energy 100/100 System Corruption 0% Temperature Cool (12) Movement Treading (160) Location -7/Deep Caves Parts ------- > --- POWER (1) -------- (None) > --- PROPULSION (3) --- Improved Treads Improved Treads Medium Treads > --- UTILITY (3) ------ Advanced Heat Sink High-capacity Storage Unit Zionite Weapon Casing > --- WEAPON (2) ------- Arc Projector Light EM Pulse Cannon > --- INVENTORY (20) --- Zionite Light DM Reactor Zionite Light DM Reactor Improved Treads Improved Treads Zionite Composite Leg I Advanced Energy Well (500) Zionite Weapon Casing Hardened Light Armor Plating Layered Medium Armor Plating Bomb Factory No. 2 Beam Rifle Zionite Phaser-S Mini Grenade Launcher Mini Grenade Launcher RU-N14's Throwing Claymores (10) RU-N14's Throwing Claymores (10) RU-N14's Throwing Claymores (5) RU-N14's Throwing Claymores (3) CR-A16's Pointy Stick Peak State ------------ > --- POWER ------------ Antimatter Reactor > --- PROPULSION ------- Improved Treads Improved Treads Medium Treads > --- UTILITY ---------- High-capacity Storage Unit Zionite Weapon Casing Hardened Light Armor Plating > --- WEAPON ----------- Arc Projector RU-N14's Throwing Claymores > --- INVENTORY -------- Zionite Light DM Reactor Zionite Light DM Reactor Improved Treads Improved Treads Zionite Composite Leg I Advanced Heat Sink Advanced Energy Well Zionite Weapon Casing Layered Medium Armor Plating Bomb Factory No. 2 Beam Rifle Zionite Phaser-S Light EM Pulse Cannon Mini Grenade Launcher Mini Grenade Launcher RU-N14's Throwing Claymores RU-N14's Throwing Claymores RU-N14's Throwing Claymores CR-A16's Pointy Stick [Rating: 45] Favorites ----------- Power Nuclear Core Engine Ion Engine Power Core Nuclear Core Reactor Antimatter Reactor Propulsion Improved Treads Treads Improved Treads Wheel Compact Wheel Utility High-capacity Storage Unit Device Heat Sink Storage High-capacity Storage Unit Processor 0b10 Decoder Chip [Scout] Hackware Hacking Suite Protection Hardened Light Armor Plating Weapon Light Assault Rifle Energy Gun Beam Rifle Energy Cannon Light EM Pulse Cannon Ballistic Gun Light Assault Rifle Ballistic Cannon Advanced Assault Cannon Launcher Mini Grenade Launcher Special Weapon RU-N14's Throwing Claymores Slashing Weapon Great Axe Piercing Weapon CR-A16's Pointy Stick Build | -11 -10 -9 -9 -7 -7 ------- Run | Scr Mat Mat Min Zio Dee Slots Evolved 2 | . . 2 . . . Power . | . . . . . . Propulsion 1 | . . 1 . . . Utility 1 | . . 1 . . . Weapon . | . . . . . . Parts Attached 95 | 8 17 28 3 14 25 Power 4 | 1 . 2 . . 1 Engine 1 | 1 . . . . . Core 2 | . . 2 . . . Reactor 1 | . . . . . 1 Propulsion 31 | 2 12 13 . 1 3 Treads 21 | 1 7 9 . 1 3 Leg . | . . . . . . Wheel 10 | 1 5 4 . . . Hover . | . . . . . . Flight . | . . . . . . Utility 25 | 2 3 6 . 5 9 Device 10 | 1 . 1 . 3 5 Storage 4 | 1 1 1 . . 1 Processor 1 | . . . . 1 . Hackware 1 | . . 1 . . . Protection 9 | . 2 3 . 1 3 Artifact . | . . . . . . Weapon 35 | 3 2 7 3 8 12 Energy Gun 11 | 2 2 1 1 1 4 Energy Cannon 1 | . . . . . 1 Ballistic Gun 7 | 1 . 5 1 . . Ballistic Cannon 1 | . . . . 1 . Launcher 5 | . . . 1 . 4 Special Weapon 6 | . . . . 3 3 Impact Weapon . | . . . . . . Slashing Weapon 3 | . . 1 . 2 . Piercing Weapon 1 | . . . . 1 . Special Melee Weapon . | . . . . . . Unidentified Prototypes 4 | . . . . 2 2 Parts Lost 12 | . 2 5 . . 5 Power 3 | . . 1 . . 2 Propulsion 5 | . 1 2 . . 2 Utility 3 | . 1 1 . . 1 Weapon 1 | . . 1 . . . Highest Loss Streak 3 | . 2 3 . . 3 To Critical Strikes . | . . . . . . Average Slot Usage (%) 99 | . 98 99 100 99 99 Engine 2 | . 14 3 . . . Core 6 | . . 7 11 11 3 Reactor 2 | . . . . . 7 Treads 28 | . 15 23 33 32 33 Wheel 3 | . 12 9 . . . Device 6 | . 5 2 11 10 5 Storage 11 | . 14 11 11 11 11 Hackware 1 | . . 8 . . . Protection 11 | . 7 10 11 10 15 Energy Gun 7 | . 14 2 9 9 5 Ballistic Gun 6 | . 14 18 11 . . Launcher 2 | . . . 1 . 7 Special Weapon 3 | . . . . 3 8 Piercing Weapon 1 | . . . . 3 . Naked Turns . | . . . . . . Heaviest Build 81 | 14 33 61 57 69 81 Greatest Support 74 | 16 40 66 66 66 74 Greatest Overweight (x) 2 | . 2 2 . 1 1 Average Overweight (x) . | . 1 . . . . Largest Inventory Capacity 20 | 8 15 20 20 20 20 Average Capacity 18 | 7 14 19 20 20 20 Most Carried 20 | 7 15 20 20 20 20 Average Carried 18 | 4 12 18 20 19 19 Final Capacity 20 | 8 15 20 20 20 20 Final Carried 20 | 7 15 20 20 20 20 Class Distribution -------------------- 100% | Mutant Dominant Class ---------------- Mutant | -10/Materials Mutant | -9/Materials Mutant | -9/Mines Mutant | -7/Zion Mutant | -7/Deep Caves Resources | -11 -10 -9 -9 -7 -7 ----------- Run | Scr Mat Mat Min Zio Dee Matter Collected 1554 | 289 231 584 8 135 307 Remotely . | . . . . . . Salvage Created 1902 | 97 440 1123 20 . 222 Parts 135 | 6 37 80 4 . 8 Haulers Intercepted . | . . . . . . Recyclers Shooed 1 | . 1 . . . . Parts Field Recycled . | . . . . . . Retrieved Matter . | . . . . . . Parts Self-Destructed 1 | . . . . 1 . Prevented . | . . . . . . Kills | -11 -10 -9 -9 -7 -7 ------- Run | Scr Mat Mat Min Zio Dee Combat Hostiles Destroyed 57 | . 12 27 4 . 14 Guns 40 | . 12 27 . . 1 AOE 16 | . . . 4 . 12 Classes Destroyed 11 | 2 4 3 . . 2 Worker 1 | . . 1 . . . Builder 2 | . . 2 . . . Tunneler 2 | 1 1 . . . . Recycler 2 | 1 . 1 . . . Operator 2 | . 1 1 . . . Watcher 6 | . 2 4 . . . Swarmer 20 | . 6 10 4 . . Grunt 19 | . 6 13 . . . Sentry 4 | . . 4 . . . Z-Light 7 | . . . . . 7 Assembled 6 | . . . . . 6 Best Kill Streak 6 | 2 3 6 4 . 3 Combat Bots Only 5 | . 3 5 4 . 3 Max Kills in Single Turn 2 | 1 1 2 2 . 2 Gunslinging 1 | . . 1 . . . Exploded 2 | . . . 2 . 2 Melee . | . . . . . . Uniques/NPCs Destroyed 1 | . . . . . 1 Z-Imprinter (-7/Deep Caves) Combat | -11 -10 -9 -9 -7 -7 -------- Run | Scr Mat Mat Min Zio Dee Damage Taken 2879 | . 454 1258 49 . 1118 Core 485 | . 67 140 . . 278 Absorbed by Shields . | . . . . . . Core Remaining (%) 86 | 100 73 . . . . Volleys Fired 216 | 11 61 116 2 . 26 Largest 2 | 2 2 2 2 . 2 Hottest 79 | 70 70 79 50 . 56 Shots Fired 411 | 22 121 231 4 . 33 Gun 389 | 22 121 231 2 . 13 Cannon . | . . . . . . Launcher 10 | . . . 2 . 8 Special 12 | . . . . . 12 Kinetic 262 | 11 61 188 2 . . Thermal 127 | 11 60 43 . . 13 Explosive 22 | . . . 2 . 20 Electromagnetic . | . . . . . . Robot Hit Streak 18 | 8 14 18 . . 3 Robot Miss Streak 6 | 2 5 6 . . 3 Penetration Max . | . . . . . . Secondary Targets 5 | . 2 3 . . . Max Gunslinging Chain 1 | . 1 1 . . . Shots Hit Robots 259 | 16 74 151 . . 18 Core Hits 135 | 4 31 63 4 . 33 Critical Kills 1 | . . 1 . . . Critical Parts Destroyed 1 | . . 1 . . . Critical Strikes 13 | 1 4 5 . . 3 Burn 9 | 1 4 3 . . 1 Destroy 2 | . . 2 . . . Sever 2 | . . . . . 2 Melee Attacks 3 | . . 2 . 1 . Impact . | . . . . . . Slashing 3 | . . 2 . 1 . Piercing . | . . . . . . Sneak Attacks . | . . . . . . Combat Hostiles . | . . . . . . Follow-up Attacks . | . . . . . . Damage Inflicted 5072 | 169 785 1836 255 . 2027 Guns 2930 | 169 785 1831 . . 145 Cannons . | . . . . . . Explosions 1894 | . . . 255 . 1639 Melee . | . . . . . . Ramming 5 | . . 5 . . . Kinetic 1749 | 69 311 1369 . . . Thermal 1181 | 100 474 462 . . 145 Explosive 1894 | . . . 255 . 1639 Electromagnetic . | . . . . . . Impact . | . . . . . . Slashing 243 | . . . . . 243 Piercing . | . . . . . . Highest Corruption . | . . . . . . Average Corruption . | . . . . . . Corruption Purged . | . . . . . . Corruption Blocked . | . . . . . . Overload Shots . | . . . . . . Overflow Damage 41 | . . . 10 . 31 Projectiles 27 | . . . . . 27 Explosions 14 | . . . 10 . 4 Melee . | . . . . . . Knockbacks . | . . . . . . Impact . | . . . . . . Kinetic . | . . . . . . Secondary . | . . . . . . Self-Inflicted Damage 128 | . . . 17 . 111 Shots 5 | . . . 1 . 4 Rammed 1 | . . 1 . . . Targets Rammed 1 | . . 1 . . . Kicked . | . . . . . . Crushed . | . . . . . . Highest Temperature 197 | 100 197 38 . . 6 Average Temperature 37 | 49 66 10 . . 3 Received Heat Transfer 735 | . 129 354 . . 252 Siege Activations . | . . . . . . Robots Corrupted . | . . . . . . Combat Hostiles . | . . . . . . Parts Fried . | . . . . . . Impact Corruptions . | . . . . . . Robots Melted 1 | . . . . . 1 Combat Hostiles 1 | . . . . . 1 Parts Melted 7 | . 3 3 . . 1 Heat Transferred 3922 | 370 1702 1406 . . 444 Parts Sabotaged . | . . . . . . Parts Stolen . | . . . . . . Parts Stripped . | . . . . . . Power Chain Reactions . | . . . . . . Missiles Intercepted . | . . . . . . Alert | -11 -10 -9 -9 -7 -7 ------- Run | Scr Mat Mat Min Zio Dee Peak Influence 466 | 10 300 466 295 . . Initial 181 | . 6 10 181 . . Average 162 | 2 149 177 289 . . Maximum Alert Level 2 | . 1 2 1 . . Low Security (%) 65 | 100 75 58 2 . . Level 1 30 | . 24 34 97 . . Level 2 3 | . . 6 . . . Level 3 . | . . . . . . Level 4 . | . . . . . . Level 5 . | . . . . . . High Security . | . . . . . . Max Security . | . . . . . . Squads Dispatched 7 | . 2 5 . . . Investigation 2 | . . 2 . . . Extermination . | . . . . . . Reinforcement 5 | . 2 3 . . . Assault . | . . . . . . Garrison . | . . . . . . Intercept . | . . . . . . Searches Triggered . | . . . . . . Construction Impeded . | . . . . . . Haulers Reinforced . | . . . . . . Active Scanning Responses . | . . . . . . Cargo Convoy Interrupts . | . . . . . . Stealth | -11 -10 -9 -9 -7 -7 --------- Run | Scr Mat Mat Min Zio Dee Distress Signals 8 | . 5 3 . . . Communications Jammed . | . . . . . . Distress Signals . | . . . . . . Times Spotted 87 | . 26 46 4 . 11 Peak Tracking Total 6 | . 4 6 4 . 5 Tactical Retreats 2 | . 1 . . . 1 Traps | -11 -10 -9 -9 -7 -7 ------- Run | Scr Mat Mat Min Zio Dee Traps Triggered 1 | . . 1 . . . Indirectly . | . . . . . . Trap Hack Attempts . | . . . . . . Triggered . | . . . . . . Disarmed . | . . . . . . Reprogrammed . | . . . . . . Reused 1 | . . . . . 1 Traps Extracted . | . . . . . . Installed 3 | . . . . . 3 Triggered . | . . . . . . Fabricated Traps 3 | . . . . . 3 Most Traps Carried 3 | . . . . . 3 Machines | -11 -10 -9 -9 -7 -7 ---------- Run | Scr Mat Mat Min Zio Dee Machines Disabled 2 | . . 2 . . . Max in Single Turn 1 | . . 1 . . . Machines Sabotaged . | . . . . . . Garrisons Compromised . | . . . . . . Overloaded Fab Kills . | . . . . . . Hacking | -11 -10 -9 -9 -7 -7 --------- Run | Scr Mat Mat Min Zio Dee Machines Accessed 4 | . . 4 . . . Terminals 3 | . . 3 . . . Fabricators . | . . . . . . Repair Stations . | . . . . . . Recycling Units 1 | . . 1 . . . Scanalyzers . | . . . . . . Garrison Access . | . . . . . . Total Hacks 14 | . . 14 . . . Successful 5 | . . 5 . . . Failed 9 | . . 9 . . . Catastrophic 1 | . . 1 . . . Database Lockouts . | . . . . . . Manual 16 | . . 10 . 6 . Terminals 10 | . . 10 . . . Fabricators . | . . . . . . Repair Stations . | . . . . . . Recycling Units 4 | . . 4 . . . Scanalyzers . | . . . . . . Garrison Access . | . . . . . . Terminal Hacks . | . . . . . . Fabricator Hacks . | . . . . . . Repair Station Hacks . | . . . . . . Recycling Unit Hacks 1 | . . 1 . . . Report Inventory 1 | . . 1 . . . Scanalyzer . | . . . . . . Garrison Access Hacks . | . . . . . . Unauthorized Hacks 4 | . . 4 . . . Terminals 3 | . . 3 . . . Botnet 2 | . . 2 . . . Operators 1 | . . 1 . . . Fabricators . | . . . . . . Repair Stations . | . . . . . . Recycling Units 1 | . . 1 . . . Tunnel 1 | . . 1 . . . Scanalyzers . | . . . . . . Garrison Access . | . . . . . . Data Cores Recovered . | . . . . . . Used . | . . . . . . Hacking Detections 3 | . . 3 . . . Full Trace Events . | . . . . . . Feedback Events . | . . . . . . Feedback Blocked . | . . . . . . Robot Schematics Acquired 4 | . . . . 4 . Robots Built . | . . . . . . Authchips . | . . . . . . Time . | . . . . . . Total Robot Build Rating . | . . . . . . Part Schematics Acquired 14 | . . . . 14 . Parts Built . | . . . . . . Authchips . | . . . . . . Time . | . . . . . . Total Part Build Rating . | . . . . . . Parts Repaired . | . . . . . . Time . | . . . . . . Parts Recycled . | . . . . . . Recycled Matter . | . . . . . . Retrieved Matter . | . . . . . . Retrieved Components . | . . . . . . Parts Scanalyzed . | . . . . . . Part Schematics Acquired . | . . . . . . Parts Damaged . | . . . . . . Bothacking | -11 -10 -9 -9 -7 -7 ------------ Run | Scr Mat Mat Min Zio Dee Used RIF Installer . | . . . . . . Robots Hacked . | . . . . . . Non-combat . | . . . . . . Combat . | . . . . . . Robot Hacks Applied . | . . . . . . Relay Couplers Released . | . . . . . . Fabnet Peak Effective % . | . . . . . . Robots Rewired . | . . . . . . Allies Hacked . | . . . . . . Hacks Repelled . | . . . . . . Allies | -11 -10 -9 -9 -7 -7 -------- Run | Scr Mat Mat Min Zio Dee Total Allies 2 | . . . . 2 . Largest Group 2 | . . . . 2 2 Highest-Rated Group 192 | . . . . 192 192 Highest-Rated Ally 96 | . . . . 96 96 Total Orders . | . . . . . . Ally Attacks 34 | . . . . . 34 Total Damage 916 | . . . . . 916 Kills 5 | . . . . . 5 Allies Corrupted . | . . . . . . Allies Melted . | . . . . . . Intel | -11 -10 -9 -9 -7 -7 ------- Run | Scr Mat Mat Min Zio Dee Robot Analysis Total . | . . . . . . Derelict Logs Recovered 2 | . . . . 2 . Drone Launches . | . . . . . . Drone Recoveries . | . . . . . . Exploration | -11 -10 -9 -9 -7 -7 ------------- Run | Scr Mat Mat Min Zio Dee Turns Passed 6360 | 104 992 1341 73 1997 1853 Spaces Moved 3285 | 57 622 657 40 1146 763 Core 3 | 3 . . . . . Treads 2248 | . 29 270 40 1146 763 Legs . | . . . . . . Wheels 1034 | 54 593 387 . . . Hover . | . . . . . . Flight . | . . . . . . Fastest Speed 50 | 50 100 105 160 160 160 Average Speed 161 | 97 121 131 160 170 211 Slowest Speed 240 | 100 240 240 160 240 240 Overloaded Moves . | . . . . . . Propulsion Burnouts . | . . . . . . Robots Hopped . | . . . . . . Cave-ins Triggered . | . . . . . . Exploration Rate (%) 52 | 4 83 58 8 85 74 Regions Visited 5 Branch Regions 3 Pre-discovered Areas 3 | . . 1 . 2 . Known Exits Taken . | . . . . . . Unknown Exits Taken 5 | 1 1 1 1 1 . Scrap Searched 5 | . . . . 5 . Spaces Dug 26 | . . 2 12 . 12 Terrain Destroyed 175 | . . 2 22 . 151 Melee 2 | . . 2 . . . Projectile 2 | . . . . . 2 AOE 171 | . . . 22 . 149 Terrain Rammed . | . . . . . . Walls Destroyed . | . . . . . . Machines Disabled . | . . . . . . Actions | -11 -10 -9 -9 -7 -7 --------- Run | Scr Mat Mat Min Zio Dee Total 3971 | 82 748 928 45 1196 972 Wait 230 | . 24 82 . . 124 Move 3280 | 56 621 656 39 1145 763 Hop . | . . . . . . Pick Up 69 | 7 15 21 . 13 13 Fast Attach 25 | 6 2 4 . 8 5 Attach 15 | 1 1 6 . 2 5 Detach 4 | . . 1 . 2 1 Swap 55 | 1 14 18 3 4 15 Drop 69 | . 10 21 1 21 16 Fire 216 | 11 61 116 2 . 26 Melee 3 | . . 2 . 1 . Ram . | . . . . . . Kick . | . . . . . . Crush 1 | . . 1 . . . Escape Stasis . | . . . . . . Rewire 1 | . . . . . 1 Trap 3 | . . . . . 3 Miscellaneous . | . . . . . . Route ------- -11/Scrapyard -10/Materials (discovered 4 exits: *Mat x3 / [*Min]) -9/Materials (discovered 3 exits: [*Mat] / [*Min x2]) -9/Mines -7/Zion (discovered 2 exits: [*Dee] / [*Pro]) -7/Deep Caves (discovered 1 exit: [*Pro]) History --------- Turn | Location | Event 27 | -11/Scrapyard | Discovered new exit (range 15) 105 | -11/Scrapyard | Entered Materials 317 | -10/Materials | Build established: Mutant 356 | -10/Materials | Discovered new exit (range 3) 485 | -10/Materials | Discovered new exit (range 16) 827 | -10/Materials | Discovered new exit (range 16) 1059 | -10/Materials | Discovered new exit (range 7) 1097 | -10/Materials | Entered another Materials area 1097 | -9/Materials | Evolved 2 slots: Propulsion x1, Utility x1 1568 | -9/Materials | Discovered new exit (range 16) 1827 | -9/Materials | Discovered new exit (range 8) 2008 | -9/Materials | Discovered new exit (range 6) 2207 | -9/Materials | Lost 3 parts (1p1n1u) 2438 | -9/Materials | Entered Mines 2474 | -9/Mines | A Derelict revealed a hidden shortcut to a safe place 2511 | -9/Mines | Entered Zion 2581 | -7/Zion | Found Prototype Device 2581 | -7/Zion | Identified Bomb Factory No. 2 2663 | -7/Zion | Discovered new exit (range 15) 2675 | -7/Zion | Learned Factory non-interactive machine intel 2707 | -7/Zion | Acquired unknown access codes intercepted by a Zionite 3155 | -7/Zion | Learned location of Armory (-4) 3234 | -7/Zion | Found Prototype Special Weapon 3234 | -7/Zion | Identified RU-N14's Throwing Claymores 3242 | -7/Zion | Found RU-N14's Throwing Claymores 3463 | -7/Zion | Learned 4 Factory zone layouts 3489 | -7/Zion | Learned location of Quarantine (-2) 3516 | -7/Zion | Found CR-A16's Pointy Stick 3670 | -7/Zion | Given A8's code to call for help 3886 | -7/Zion | Opened final containment barrier to the Deep Caves 3908 | -7/Zion | Discovered new exit (range 5) 3912 | -7/Zion | Saw the warning signs outside the Deep Caves entrance 3965 | -7/Zion | Found RU-N14's Throwing Claymores 3972 | -7/Zion | Found RU-N14's Throwing Claymores 4455 | -7/Zion | Enhanced Grunt warped into view, answering call for help 4456 | -7/Zion | Enhanced Grunt warped into view, answering call for help 4508 | -7/Zion | Entered Deep Caves 4508 | -7/Deep Caves | Accompanied by 2 allies 5070 | -7/Deep Caves | Attacked by Z-Imprinter 5081 | -7/Deep Caves | Core integrity fell below 50% 5084 | -7/Deep Caves | Destroyed Z-Imprinter 5298 | -7/Deep Caves | Z-Facility disabled 5351 | -7/Deep Caves | Lost 3 parts (2n1u) 5409 | -7/Deep Caves | Found Prototype Protection 5409 | -7/Deep Caves | Identified Zio. Weapon Casing 5476 | -7/Deep Caves | Found Zio. Weapon Casing 6089 | -7/Deep Caves | Discovered new exit (range 7) 6357 | -7/Deep Caves | Spotted as-71241 6359 | -7/Deep Caves | Core integrity fell below 20% 6361 | -7/Deep Caves | Destroyed by as-71241 with Assembled Focal Cannon Last Messages --------------- 05409_ Acquired Prototype Protection. 05409_ Identified Zio. Weapon Casing. 05476_ Acquired Zio. Weapon Casing. 05505_ The unstable cave ceiling collapses. 05508_ Acquired Prototype Reactor. 05550_ Dropped Adv. Heat Sink. 05550_ Acquired Prototype Energy Gun. 05553_ Dropped Beam Rifle. 05554_ Acquired Prototype Leg. 06052_ as-42090 destroyed. 06053_ The unstable cave ceiling collapses. 06078_ as-99413 destroyed. 06084_ The unstable cave ceiling collapses. 06089_ EXIT=FOUND 06103_ The unstable cave ceiling collapses. 06238_ as-16447 destroyed. 06247_ Acquired 4 matter. 06256_ The unstable cave ceiling collapses. 06359_ as-71241: "DSI9AT1D G8OHIBQ29FWG 26R186 QD12WHW8W33 TDK1 81FTS" 06361_ Antimatter Reactor destroyed. Map ----- +----------------------------------------------------+ | ?????????????????????????????# ## | | ?????????????????????????????# #? | | ?????????????????????????????# ### #? | | ?????????????????????????????# #?## ## #? | | ?????????????????????????????# ##### ### #? | | ?????????????????????????????#### ######?# #? | | ????????????????????????????????## #?????# #? | | ?????????????????????????????????# #???### #? | | ?????????????????????????????????## #?### #? | | ????????????????????? ????????# ###?# ## | | ??????????????????? = #???????# ###### | | ???????????????? ##?????## ## | | ?????????????? = #?????# | | ???????????? #?????## | | ???????????? s = #??????# # # | | ??????????? *= / s #??????## ## | | ??????????? / #??????## ### | | ?????????? h / #??????# ##### # | | ?????????? = #??????# ##?# | | ?????????? ! ###????# #### | | ????????? ;#????# "" | | ????????? ! #?????# """ | | ???????? ! g s #?????# " ### | | ???????? b ####### #### | | ???????? ### | | ?????????" ! ! g @ #### ### | | ???????? ##??####?# | | ????????? h ##### #????????# | | ????????? M #??# ##???????# | | ?????????? ##??## ##????????# | | ?????????? # # #????####?????????# | | ?????????? #### ## ## ##?????????????????## | | ??????????? #????# ?# ?###???????????????????#### | | ??????????? ??????#??# ??????????????????????????? | | ??????????????????????#??????????????????????????? | | | | | | | | | | | | | | | | | | | | | | | | | | | | | | | +----------------------------------------------------+ Best States ------------- Heat Dissipation 47 Energy Generation 21 Energy Capacity 325 Matter Stores 300 Matter Capacity 300 Sight Range 16 Terrain Scan Range 16 Terrain Scan Density 10 Armor Coverage 225 Weapon Shielding 100 Evasion (%) 40 Recoil Reduction 3 Offensive Hacking 10 Item Schematics ----------------- Imp. Field Recycling Unit | -7/Zion | Archive Imp. Trap Scanner | -7/Zion | Archive Coolant Injector | -7/Zion | Archive Hpw. Shock Rifle | -7/Zion | Archive Thermal Shield | -7/Zion | Archive Adv. Terrain Scan Processor | -7/Zion | Archive Recoil Nullifier | -7/Zion | Archive Hvy. Phase Cannon | -7/Zion | Archive Mak. Hammer | -7/Zion | Archive Lgt. Angular Momentum Engine | -7/Zion | Archive Imp. Melee Analysis Suite | -7/Zion | Archive Imp. Particle Charger | -7/Zion | Archive Power Sword | -7/Zion | Archive Mak. Power Source | -7/Zion | Archive Robot Schematics ------------------ A-02 Transporter | -7/Zion | Archive T-07 Excavator | -7/Zion | Archive Y-54 Guardian | -7/Zion | Archive X-77 Beamer | -7/Zion | Archive Fabricated ------------ Nothing Alien Tech Used ----------------- None Achievements -------------- None Challenges ------------ None Game ------ Seed FusionThrowingSubcomponent Manual? 0 Play Time 01:25:35 Cumulative 191.4 hours Start 2022.04.12 @ 17:48:06 End 2022.04.13 @ 14:35:25 Sessions 5 Manual Loads 0 Difficulty Rogue Special Mode None Game No. 71 Rogue 71 Adventurer 0 Explorer 0 Win Type - Total 2 Types 1/0/1/0/0/0/0/0/0 Lore% 59 Gallery% 70 Achievement% 53 Wizard Run 0 Options --------- ASCII 1 Keyboard 1 Movement Numpad Keybinds 0 Fullscreen 1 Font 36/Smallcaps Map View 76x50 Tactical HUD 1 Map Filters NONE Filters NONE Steam 1 RUN: a5c386da-4118-497e-a8c5-96928c456d6e